[Event "*** Titled Tuesday Blitz"]
[Site "Chess.com"]
[Date "2021.02.09"]
[Round "9"]
[White "SaraciNderim"]
[Black "Alex-11211"]
[Result "1-0"]
[WhiteElo "2770"]
[BlackElo "2412"]
[TimeControl "180+1"]
[EndTime "11:45:29 PST"]
[Termination "SaraciNderim won on time"]

1. b3 {[%clk 0:03:00.9]} 1... Nf6 {[%clk 0:02:56.6]} 2. Bb2 {[%clk 0:03:01.4]}
2... g6 {[%clk 0:02:57.5]} 3. e3 {[%clk 0:03:01.8]} 3... Bg7 {[%clk 0:02:57.9]}
4. Nf3 {[%clk 0:03:02.5]} 4... O-O {[%clk 0:02:58.8]} 5. d4 {[%clk 0:03:03.1]}
5... d6 {[%clk 0:02:59.4]} 6. c4 {[%clk 0:03:03.2]} 6... Nbd7 {[%clk 0:02:59.4]}
7. g3 {[%clk 0:03:03.5]} 7... e5 {[%clk 0:02:57.1]} 8. Bg2 {[%clk 0:03:03.9]}
8... Re8 {[%clk 0:02:45.2]} 9. O-O {[%clk 0:03:03.1]} 9... e4 {[%clk 0:02:32]}
10. Nfd2 {[%clk 0:03:02.9]} 10... Nf8 {[%clk 0:02:32.5]} 11. d5 {[%clk
0:03:02.3]} 11... Bf5 {[%clk 0:02:27.4]} 12. Nc3 {[%clk 0:03:00.7]} 12... h5
{[%clk 0:02:24.3]} 13. Ne2 {[%clk 0:02:59.1]} 13... N8h7 {[%clk 0:02:21.4]} 14.
Nd4 {[%clk 0:02:54.7]} 14... Bg4 {[%clk 0:02:15.4]} 15. Qc2 {[%clk 0:02:53.1]}
15... Ng5 {[%clk 0:02:15.2]} 16. h4 {[%clk 0:02:50.1]} 16... Ngh7 {[%clk
0:01:43.5]} 17. Nxe4 {[%clk 0:02:47.4]} 17... Bf5 {[%clk 0:01:36.1]} 18. Nxf5
{[%clk 0:02:43.3]} 18... gxf5 {[%clk 0:01:31]} 19. Nxf6+ {[%clk 0:02:43.3]}
19... Bxf6 {[%clk 0:01:31.1]} 20. Rae1 {[%clk 0:02:39.6]} 20... Bxb2 {[%clk
0:01:28]} 21. Qxb2 {[%clk 0:02:39.3]} 21... Qf6 {[%clk 0:01:28.9]} 22. Qe2
{[%clk 0:02:35.9]} 22... Qg6 {[%clk 0:01:26.4]} 23. Qf3 {[%clk 0:02:35]} 23...
Nf6 {[%clk 0:01:25.7]} 24. Qf4 {[%clk 0:02:35]} 24... Ne4 {[%clk 0:01:21.6]} 25.
Re2 {[%clk 0:02:30.8]} 25... Re5 {[%clk 0:01:16.7]} 26. Bf3 {[%clk 0:02:30.3]}
26... Rae8 {[%clk 0:01:14.3]} 27. Rfe1 {[%clk 0:02:27.9]} 27... b6 {[%clk
0:01:05]} 28. Kg2 {[%clk 0:02:23.3]} 28... Kg7 {[%clk 0:00:57.6]} 29. Rc2 {[%clk
0:02:21.2]} 29... a5 {[%clk 0:00:54.4]} 30. Rd1 {[%clk 0:02:19.5]} 30... Nc5
{[%clk 0:00:45.1]} 31. Qg5 {[%clk 0:02:16.4]} 31... Qxg5 {[%clk 0:00:35.8]} 32.
hxg5 {[%clk 0:02:17.3]} 32... Kg6 {[%clk 0:00:36.4]} 33. Rh1 {[%clk 0:02:16.6]}
33... Rh8 {[%clk 0:00:37]} 34. Rh4 {[%clk 0:02:13.5]} 34... Ree8 {[%clk
0:00:31.6]} 35. Rc1 {[%clk 0:02:11]} 35... Rh7 {[%clk 0:00:28.7]} 36. Rch1
{[%clk 0:02:05]} 36... Reh8 {[%clk 0:00:28.4]} 37. Bd1 {[%clk 0:02:01.9]} 37...
Kxg5 {[%clk 0:00:28.2]} 38. Bc2 {[%clk 0:02:01.5]} 38... Re8 {[%clk 0:00:22.2]}
39. Rf4 {[%clk 0:02:01.3]} 39... Re5 {[%clk 0:00:20.2]} 40. Rfh4 {[%clk
0:02:01.2]} 40... Re8 {[%clk 0:00:20.1]} 41. Bd1 {[%clk 0:01:56.5]} 41... Reh8
{[%clk 0:00:19.4]} 42. Rf4 {[%clk 0:01:54.9]} 42... Re8 {[%clk 0:00:18.8]} 43.
Bc2 {[%clk 0:01:49.4]} 43... Re5 {[%clk 0:00:18.9]} 44. a3 {[%clk 0:01:48.1]}
44... Nd7 {[%clk 0:00:16.1]} 45. b4 {[%clk 0:01:43.2]} 45... axb4 {[%clk
0:00:17]} 46. axb4 {[%clk 0:01:44.1]} 46... Nf6 {[%clk 0:00:16.4]} 47. Ra1
{[%clk 0:01:44]} 47... b5 {[%clk 0:00:16.5]} 48. Rd4 {[%clk 0:01:40.6]} 48...
bxc4 {[%clk 0:00:15.9]} 49. f4+ {[%clk 0:01:40.6]} 49... Kg6 {[%clk 0:00:13.8]}
50. fxe5 {[%clk 0:01:41]} 50... dxe5 {[%clk 0:00:14.7]} 51. Rxc4 {[%clk
0:01:41.4]} 51... Nxd5 {[%clk 0:00:15.6]} 52. Rc5 {[%clk 0:01:41.2]} 52... Nxe3+
{[%clk 0:00:14.5]} 53. Kf3 {[%clk 0:01:41.4]} 53... Ng4 {[%clk 0:00:13.4]} 54.
Rxc7 {[%clk 0:01:39]} 54... Kg5 {[%clk 0:00:13]} 55. Raa7 {[%clk 0:01:36.3]}
55... e4+ {[%clk 0:00:12.6]} 56. Ke2 {[%clk 0:01:35.2]} 56... h4 {[%clk
0:00:13.2]} 57. Rxf7 {[%clk 0:01:28.1]} 57... Rxf7 {[%clk 0:00:11.6]} 58. Rxf7
{[%clk 0:01:29]} 58... hxg3 {[%clk 0:00:12.5]} 59. Rg7+ {[%clk 0:01:29]} 59...
Kf4 {[%clk 0:00:12.6]} 60. Ra7 {[%clk 0:01:07.8]} 60... g2 {[%clk 0:00:10.8]}
61. Ra1 {[%clk 0:01:07.4]} 61... Kg3 {[%clk 0:00:10.2]} 62. b5 {[%clk
0:01:07.9]} 62... Ne5 {[%clk 0:00:09.2]} 63. b6 {[%clk 0:01:07.8]} 63... Nc6
{[%clk 0:00:09.3]} 64. b7 {[%clk 0:01:07.9]} 64... Nd4+ {[%clk 0:00:07.3]} 65.
Kd2 {[%clk 0:01:04.7]} 65... e3+ {[%clk 0:00:06.5]} 66. Kd3 {[%clk 0:00:59.8]}
66... Nxc2 {[%clk 0:00:02]} 67. b8=Q+ {[%clk 0:00:57.3]} 67... Kf2 {[%clk
0:00:01.6]} 68. Kxc2 {[%clk 0:00:57.3]} 1-0

[Event "*** Titled Tuesday Blitz"]
[Site "Chess.com"]
[Date "2021.02.09"]
[Round "9"]
[White "Deepweb2020"]
[Black "agartha01"]
[Result "0-1"]
[WhiteElo "2457"]
[BlackElo "2359"]
[TimeControl "180+1"]
[EndTime "11:45:29 PST"]
[Termination "agartha01 won on time"]

1. d4 {[%clk 0:03:00.9]} 1... Nf6 {[%clk 0:02:59.5]} 2. c4 {[%clk 0:03:01.1]}
2... e6 {[%clk 0:02:59.9]} 3. g3 {[%clk 0:03:00.4]} 3... Bb4+ {[%clk 0:02:59.6]}
4. Bd2 {[%clk 0:03:00.3]} 4... Bxd2+ {[%clk 0:02:59.6]} 5. Nxd2 {[%clk
0:03:01.2]} 5... d5 {[%clk 0:03:00.3]} 6. Bg2 {[%clk 0:03:00]} 6... O-O {[%clk
0:03:00.5]} 7. e3 {[%clk 0:03:00.1]} 7... c6 {[%clk 0:03:00.9]} 8. Ne2 {[%clk
0:03:00]} 8... Nbd7 {[%clk 0:03:01.3]} 9. O-O {[%clk 0:03:00.4]} 9... b6 {[%clk
0:02:59.4]} 10. a3 {[%clk 0:03:00.8]} 10... Ba6 {[%clk 0:02:57.7]} 11. b3 {[%clk
0:02:55.4]} 11... Re8 {[%clk 0:02:56.4]} 12. e4 {[%clk 0:02:40.6]} 12... dxc4
{[%clk 0:02:39.2]} 13. bxc4 {[%clk 0:02:28.5]} 13... e5 {[%clk 0:02:38.8]} 14.
d5 {[%clk 0:02:24.6]} 14... cxd5 {[%clk 0:02:36.5]} 15. cxd5 {[%clk 0:02:24.9]}
15... Nc5 {[%clk 0:02:35.5]} 16. f3 {[%clk 0:02:05.2]} 16... Qd7 {[%clk
0:02:28.3]} 17. g4 {[%clk 0:01:46.6]} 17... Rac8 {[%clk 0:02:22.8]} 18. Ng3
{[%clk 0:01:33.1]} 18... Bxf1 {[%clk 0:02:09.3]} 19. Bxf1 {[%clk 0:01:32.9]}
19... Red8 {[%clk 0:02:09.4]} 20. Nc4 {[%clk 0:01:23.8]} 20... Qe8 {[%clk
0:01:56.4]} 21. g5 {[%clk 0:01:15.9]} 21... Nfd7 {[%clk 0:01:50]} 22. Nd6 {[%clk
0:01:16]} 22... Qe7 {[%clk 0:01:49.9]} 23. Nxc8 {[%clk 0:01:15]} 23... Rxc8
{[%clk 0:01:50.8]} 24. h4 {[%clk 0:01:15.1]} 24... g6 {[%clk 0:01:41.9]} 25. Rc1
{[%clk 0:01:03.5]} 25... f6 {[%clk 0:01:38.6]} 26. Qd2 {[%clk 0:01:02.3]} 26...
Rf8 {[%clk 0:01:33.8]} 27. d6 {[%clk 0:01:00.2]} 27... Qd8 {[%clk 0:01:20.1]}
28. Kg2 {[%clk 0:00:59.9]} 28... Kg7 {[%clk 0:01:16.9]} 29. Bc4 {[%clk
0:00:54.4]} 29... fxg5 {[%clk 0:01:10.6]} 30. hxg5 {[%clk 0:00:53.9]} 30... h5
{[%clk 0:00:56.3]} 31. gxh6+ {[%clk 0:00:53.4]} 31... Kh7 {[%clk 0:00:56.5]} 32.
Qd5 {[%clk 0:00:28.3]} 32... Qf6 {[%clk 0:00:46]} 33. Rf1 {[%clk 0:00:26.2]}
33... Qf4 {[%clk 0:00:35.3]} 34. Qe6 {[%clk 0:00:14.6]} 34... Nxe6 {[%clk
0:00:34.6]} 35. Bxe6 {[%clk 0:00:13.7]} 35... Nc5 {[%clk 0:00:34.2]} 36. Bg4
{[%clk 0:00:13.5]} 36... Qd2+ {[%clk 0:00:34]} 37. Rf2 {[%clk 0:00:12.7]} 37...
Qxd6 {[%clk 0:00:34.5]} 38. Nf1 {[%clk 0:00:11.5]} 38... Nd3 {[%clk 0:00:28.9]}
39. Rd2 {[%clk 0:00:10.7]} 39... Qxa3 {[%clk 0:00:26.3]} 40. Ne3 {[%clk
0:00:09.4]} 40... Nf4+ {[%clk 0:00:25.7]} 41. Kf2 {[%clk 0:00:08.5]} 41... Kxh6
{[%clk 0:00:21.5]} 42. Bd7 {[%clk 0:00:06.8]} 42... Rd8 {[%clk 0:00:20]} 43.
Ng4+ {[%clk 0:00:05.5]} 43... Kg7 {[%clk 0:00:19.9]} 44. Nxe5 {[%clk 0:00:05.1]}
44... Qc5+ {[%clk 0:00:19.8]} 45. Kg3 {[%clk 0:00:04]} 45... Qxe5 {[%clk
0:00:19.9]} 46. Kf2 {[%clk 0:00:02.7]} 46... Ne6 {[%clk 0:00:17.5]} 47. Rd5
{[%clk 0:00:01]} 47... Qb2+ {[%clk 0:00:16.8]} 48. Kg3 {[%clk 0:00:01]} 48...
Nc5 {[%clk 0:00:16.7]} 0-1

[Event "*** Titled Tuesday Blitz"]
[Site "Chess.com"]
[Date "2021.02.09"]
[Round "9"]
[White "oneshot007"]
[Black "XDPS"]
[Result "1/2-1/2"]
[WhiteElo "2570"]
[BlackElo "2742"]
[TimeControl "180+1"]
[EndTime "11:45:30 PST"]
[Termination "Game drawn by repetition"]

1. e4 {[%clk 0:03:00.9]} 1... e5 {[%clk 0:02:48.3]} 2. Nf3 {[%clk 0:03:00.6]}
2... Nc6 {[%clk 0:02:48.3]} 3. d4 {[%clk 0:03:00.6]} 3... exd4 {[%clk
0:02:48.4]} 4. Nxd4 {[%clk 0:03:01.5]} 4... Bc5 {[%clk 0:02:48.6]} 5. Nxc6
{[%clk 0:03:01.4]} 5... bxc6 {[%clk 0:02:49.5]} 6. Bd3 {[%clk 0:02:49.6]} 6...
Qh4 {[%clk 0:02:49.2]} 7. O-O {[%clk 0:02:15.3]} 7... Nf6 {[%clk 0:02:47.9]} 8.
Qf3 {[%clk 0:01:36.9]} 8... O-O {[%clk 0:02:38.1]} 9. e5 {[%clk 0:01:35.3]} 9...
Ng4 {[%clk 0:02:24.2]} 10. Bf4 {[%clk 0:01:34.8]} 10... d6 {[%clk 0:01:23.5]}
11. h3 {[%clk 0:01:18.8]} 11... Nxe5 {[%clk 0:01:19.9]} 12. Bxe5 {[%clk
0:01:19.2]} 12... dxe5 {[%clk 0:01:20.2]} 13. Qxc6 {[%clk 0:01:19.5]} 13... e4
{[%clk 0:00:20]} 14. Qxc5 {[%clk 0:00:48.2]} 14... exd3 {[%clk 0:00:18.4]} 15.
cxd3 {[%clk 0:00:49.1]} 15... Rb8 {[%clk 0:00:17.4]} 16. Nc3 {[%clk 0:00:45.9]}
16... Ba6 {[%clk 0:00:17]} 17. Nd5 {[%clk 0:00:41.8]} 17... Bxd3 {[%clk
0:00:13.7]} 18. Rfe1 {[%clk 0:00:39.5]} 18... Kh8 {[%clk 0:00:11.7]} 19. Rad1
{[%clk 0:00:37.3]} 19... Bg6 {[%clk 0:00:10.8]} 20. b3 {[%clk 0:00:35.4]} 20...
Qg5 {[%clk 0:00:07.6]} 21. Qxc7 {[%clk 0:00:33.1]} 21... Rbc8 {[%clk 0:00:07.2]}
22. Qxa7 {[%clk 0:00:30.4]} 22... Ra8 {[%clk 0:00:07.7]} 23. Qc5 {[%clk
0:00:26.2]} 23... Rfc8 {[%clk 0:00:06.6]} 24. Qd4 {[%clk 0:00:18.1]} 24... Rxa2
{[%clk 0:00:02.9]} 25. h4 {[%clk 0:00:14.2]} 25... Qd8 {[%clk 0:00:01.7]} 26.
Qg4 {[%clk 0:00:10.1]} 26... Raa8 {[%clk 0:00:01.7]} 27. Ne7 {[%clk 0:00:07.2]}
27... Qf8 {[%clk 0:00:01.5]} 28. Nxc8 {[%clk 0:00:05.1]} 28... Rxc8 {[%clk
0:00:02.4]} 29. Rd7 {[%clk 0:00:05.1]} 29... f5 {[%clk 0:00:02.6]} 30. Qd4
{[%clk 0:00:04.7]} 30... Rb8 {[%clk 0:00:02.6]} 31. Ree7 {[%clk 0:00:04.8]}
31... h6 {[%clk 0:00:03.1]} 32. Rxg7 {[%clk 0:00:05.1]} 32... Rb4 {[%clk
0:00:03.1]} 33. Rxg6+ {[%clk 0:00:04.8]} 33... Rxd4 {[%clk 0:00:02.9]} 34. Rxd4
{[%clk 0:00:04.7]} 34... Kh7 {[%clk 0:00:03.2]} 35. Rgd6 {[%clk 0:00:04.8]}
35... Qb8 {[%clk 0:00:02.6]} 36. b4 {[%clk 0:00:04.3]} 36... Qb5 {[%clk
0:00:02.6]} 37. h5 {[%clk 0:00:04.6]} 37... Qe2 {[%clk 0:00:02.8]} 38. Rd7+
{[%clk 0:00:05]} 38... Kg8 {[%clk 0:00:03.7]} 39. Rd8+ {[%clk 0:00:04]} 39...
Kf7 {[%clk 0:00:04.2]} 40. R4d7+ {[%clk 0:00:04.6]} 40... Kf6 {[%clk 0:00:04.7]}
41. Rd6+ {[%clk 0:00:03.5]} 41... Kg5 {[%clk 0:00:04.8]} 42. Rd4 {[%clk
0:00:03.7]} 42... Qe1+ {[%clk 0:00:04.9]} 43. Kh2 {[%clk 0:00:04.1]} 43... Qxf2
{[%clk 0:00:05.5]} 44. b5 {[%clk 0:00:04.5]} 44... Kxh5 {[%clk 0:00:05.2]} 45.
b6 {[%clk 0:00:04.5]} 45... f4 {[%clk 0:00:05.7]} 46. b7 {[%clk 0:00:04.3]}
46... Qg3+ {[%clk 0:00:05.6]} 47. Kg1 {[%clk 0:00:04.3]} 47... Qe1+ {[%clk
0:00:06.5]} 48. Kh2 {[%clk 0:00:04.6]} 48... Qh4+ {[%clk 0:00:07.1]} 49. Kg1
{[%clk 0:00:04.7]} 49... Qe1+ {[%clk 0:00:08]} 50. Kh2 {[%clk 0:00:05.2]} 50...
Qg3+ {[%clk 0:00:07.9]} 51. Kg1 {[%clk 0:00:05.2]} 51... Qe1+ {[%clk 0:00:07.4]}
1/2-1/2

[Event "*** Titled Tuesday Blitz"]
[Site "Chess.com"]
[Date "2021.02.09"]
[Round "9"]
[White "vladimirdamjanovic"]
[Black "Mr_Sinigami"]
[Result "0-1"]
[WhiteElo "2514"]
[BlackElo "2646"]
[TimeControl "180+1"]
[EndTime "11:45:30 PST"]
[Termination "Mr_Sinigami won by checkmate"]

1. d4 {[%clk 0:02:57.5]} 1... Nf6 {[%clk 0:02:59.1]} 2. Nc3 {[%clk 0:02:55.3]}
2... d5 {[%clk 0:02:57.8]} 3. Bf4 {[%clk 0:02:54.4]} 3... a6 {[%clk 0:02:56.6]}
4. e3 {[%clk 0:02:53.3]} 4... Bf5 {[%clk 0:02:52.4]} 5. Bd3 {[%clk 0:02:27.9]}
5... Bg6 {[%clk 0:02:51.8]} 6. h4 {[%clk 0:02:26]} 6... e6 {[%clk 0:02:43.6]} 7.
h5 {[%clk 0:02:25.2]} 7... Bxd3 {[%clk 0:02:42.6]} 8. cxd3 {[%clk 0:02:26.1]}
8... h6 {[%clk 0:02:38.2]} 9. Nf3 {[%clk 0:02:24.9]} 9... c5 {[%clk 0:02:20.4]}
10. dxc5 {[%clk 0:01:00.4]} 10... Bxc5 {[%clk 0:02:18.6]} 11. d4 {[%clk
0:00:59.9]} 11... Be7 {[%clk 0:02:08.8]} 12. Ne5 {[%clk 0:00:50.4]} 12... O-O
{[%clk 0:02:03.5]} 13. Qd3 {[%clk 0:00:43.8]} 13... Nfd7 {[%clk 0:01:58.1]} 14.
f3 {[%clk 0:00:17.1]} 14... Nxe5 {[%clk 0:01:53.4]} 15. Bxe5 {[%clk 0:00:18]}
15... Nc6 {[%clk 0:01:53]} 16. Bf4 {[%clk 0:00:17.1]} 16... Rc8 {[%clk
0:01:50.6]} 17. Kf2 {[%clk 0:00:16.4]} 17... Bd6 {[%clk 0:01:32.9]} 18. g3
{[%clk 0:00:13.5]} 18... e5 {[%clk 0:01:22.2]} 19. dxe5 {[%clk 0:00:07.4]} 19...
Bxe5 {[%clk 0:01:22.1]} 20. Nxd5 {[%clk 0:00:02.1]} 20... Bxf4 {[%clk
0:00:53.5]} 21. Nxf4 {[%clk 0:00:03]} 21... Qb6 {[%clk 0:00:51.5]} 22. Qe2
{[%clk 0:00:01.9]} 22... Ne5 {[%clk 0:00:44.1]} 23. Rhd1 {[%clk 0:00:01.7]}
23... Rfe8 {[%clk 0:00:37.9]} 24. Rac1 {[%clk 0:00:01.5]} 24... Rxc1 {[%clk
0:00:24.9]} 25. Rxc1 {[%clk 0:00:02.4]} 25... Qa5 {[%clk 0:00:20.3]} 26. b3
{[%clk 0:00:02.5]} 26... Nd7 {[%clk 0:00:16.4]} 27. Qe1 {[%clk 0:00:02.2]} 27...
Qxa2+ {[%clk 0:00:15.1]} 28. Qe2 {[%clk 0:00:02.1]} 28... Qxb3 {[%clk
0:00:15.2]} 29. Rc7 {[%clk 0:00:01.9]} 29... Ne5 {[%clk 0:00:14.5]} 30. g4
{[%clk 0:00:02.3]} 30... a5 {[%clk 0:00:14.2]} 31. Qd2 {[%clk 0:00:02]} 31... a4
{[%clk 0:00:13.6]} 32. Qd5 {[%clk 0:00:01.6]} 32... Qxd5 {[%clk 0:00:12.8]} 33.
Nxd5 {[%clk 0:00:02.5]} 33... Ra8 {[%clk 0:00:12.9]} 34. Nb6 {[%clk 0:00:02.6]}
34... Ra6 {[%clk 0:00:12.2]} 35. Rc8+ {[%clk 0:00:02]} 35... Kh7 {[%clk
0:00:11.9]} 36. Rc5 {[%clk 0:00:02.7]} 36... a3 {[%clk 0:00:11.1]} 37. Rxe5
{[%clk 0:00:01.3]} 37... a2 {[%clk 0:00:11.3]} 38. Nd7 {[%clk 0:00:02.2]} 38...
a1=Q {[%clk 0:00:10.8]} 39. Nf8+ {[%clk 0:00:03.1]} 39... Kg8 {[%clk 0:00:10.5]}
40. Re8 {[%clk 0:00:04]} 40... Ra8 {[%clk 0:00:10.2]} 41. Rxa8 {[%clk
0:00:01.6]} 41... Qxa8 {[%clk 0:00:08.5]} 42. Nd7 {[%clk 0:00:02.5]} 42... Qa2+
{[%clk 0:00:08.5]} 43. Kg3 {[%clk 0:00:03]} 43... Qd5 {[%clk 0:00:08.4]} 44. Nb6
{[%clk 0:00:03.3]} 44... Qd6+ {[%clk 0:00:08.7]} 45. f4 {[%clk 0:00:03.9]} 45...
Qxb6 {[%clk 0:00:09.6]} 46. Kh4 {[%clk 0:00:04.8]} 46... Qxe3 {[%clk 0:00:09.6]}
47. f5 {[%clk 0:00:01]} 47... Qf3 {[%clk 0:00:09]} 48. f6 {[%clk 0:00:01.3]}
48... gxf6 {[%clk 0:00:08.9]} 49. g5 {[%clk 0:00:02.2]} 49... fxg5# {[%clk
0:00:09.6]} 0-1

[Event "*** Titled Tuesday Blitz"]
[Site "Chess.com"]
[Date "2021.02.09"]
[Round "9"]
[White "DonPreuss"]
[Black "Kotofeyca"]
[Result "0-1"]
[WhiteElo "2252"]
[BlackElo "2445"]
[TimeControl "180+1"]
[EndTime "11:45:30 PST"]
[Termination "Kotofeyca won on time"]

1. d4 {[%clk 0:02:59]} 1... d5 {[%clk 0:02:59.4]} 2. e4 {[%clk 0:02:58.2]} 2...
c6 {[%clk 0:03:00.3]} 3. Nc3 {[%clk 0:02:58.1]} 3... dxe4 {[%clk 0:02:59.7]} 4.
f3 {[%clk 0:02:55.3]} 4... Nf6 {[%clk 0:02:55.2]} 5. Nxe4 {[%clk 0:02:45.7]}
5... Nxe4 {[%clk 0:02:51.6]} 6. fxe4 {[%clk 0:02:45.4]} 6... e5 {[%clk
0:02:50.7]} 7. Nf3 {[%clk 0:02:44.9]} 7... exd4 {[%clk 0:02:49.9]} 8. Bc4 {[%clk
0:02:42.2]} 8... Bb4+ {[%clk 0:02:43.5]} 9. Bd2 {[%clk 0:02:33.6]} 9... Bxd2+
{[%clk 0:02:41.1]} 10. Qxd2 {[%clk 0:02:34.5]} 10... O-O {[%clk 0:02:37.7]} 11.
O-O {[%clk 0:02:34.9]} 11... Nd7 {[%clk 0:01:46.9]} 12. Qxd4 {[%clk 0:01:43.7]}
12... Nb6 {[%clk 0:01:43.5]} 13. Qc3 {[%clk 0:01:19.6]} 13... Nxc4 {[%clk
0:01:40.8]} 14. Qxc4 {[%clk 0:01:20.5]} 14... Be6 {[%clk 0:01:40.9]} 15. Qc3
{[%clk 0:01:20.2]} 15... Qb6+ {[%clk 0:01:31.7]} 16. Kh1 {[%clk 0:01:19.8]}
16... h6 {[%clk 0:01:26.3]} 17. Rad1 {[%clk 0:01:15.3]} 17... Rad8 {[%clk
0:01:24.6]} 18. a3 {[%clk 0:01:12.2]} 18... Rxd1 {[%clk 0:01:16.1]} 19. Rxd1
{[%clk 0:01:11.7]} 19... Rd8 {[%clk 0:01:16.6]} 20. Rf1 {[%clk 0:01:06.4]} 20...
Qa6 {[%clk 0:01:07.3]} 21. Kg1 {[%clk 0:01:02.7]} 21... Qe2 {[%clk 0:01:01.1]}
22. h3 {[%clk 0:01:00.5]} 22... Qxe4 {[%clk 0:00:59]} 23. Re1 {[%clk 0:00:48.8]}
23... Qf4 {[%clk 0:00:48.1]} 24. b4 {[%clk 0:00:31.3]} 24... Rd5 {[%clk
0:00:40.9]} 25. Rf1 {[%clk 0:00:29.5]} 25... Rf5 {[%clk 0:00:30.1]} 26. Qd3
{[%clk 0:00:26.2]} 26... Bc4 {[%clk 0:00:24.8]} 27. Qd8+ {[%clk 0:00:25.7]}
27... Kh7 {[%clk 0:00:25.2]} 28. Rf2 {[%clk 0:00:26]} 28... Bd5 {[%clk
0:00:20.5]} 29. Qe7 {[%clk 0:00:15.3]} 29... Rf6 {[%clk 0:00:17.9]} 30. Qe2
{[%clk 0:00:14.1]} 30... Qc1+ {[%clk 0:00:17.4]} 31. Kh2 {[%clk 0:00:14.1]}
31... Qf4+ {[%clk 0:00:17.3]} 32. Kg1 {[%clk 0:00:13.9]} 32... Qg3 {[%clk
0:00:17]} 33. Qd2 {[%clk 0:00:10.7]} 33... Bxf3 {[%clk 0:00:15.7]} 34. Qd3+
{[%clk 0:00:09.7]} 34... Kg8 {[%clk 0:00:14.4]} 35. Rxf3 {[%clk 0:00:09]} 35...
Rxf3 {[%clk 0:00:13.7]} 36. Qxf3 {[%clk 0:00:09.5]} 36... Qxf3 {[%clk
0:00:13.9]} 37. gxf3 {[%clk 0:00:10.3]} 37... f5 {[%clk 0:00:14]} 38. Kf2 {[%clk
0:00:10.4]} 38... Kf7 {[%clk 0:00:14.6]} 39. Ke3 {[%clk 0:00:10.6]} 39... Ke6
{[%clk 0:00:14.6]} 40. f4 {[%clk 0:00:09.5]} 40... g5 {[%clk 0:00:14.5]} 41. c4
{[%clk 0:00:09.2]} 41... b6 {[%clk 0:00:13.3]} 42. Kf3 {[%clk 0:00:07.4]} 42...
c5 {[%clk 0:00:13.5]} 43. b5 {[%clk 0:00:05.3]} 43... Kf6 {[%clk 0:00:12.9]} 44.
Kg3 {[%clk 0:00:05.2]} 44... Kg6 {[%clk 0:00:13.2]} 45. Kf3 {[%clk 0:00:04.4]}
45... Kh5 {[%clk 0:00:13.1]} 46. Kg3 {[%clk 0:00:04.9]} 46... Kg6 {[%clk
0:00:08.4]} 47. Kf3 {[%clk 0:00:05]} 47... Kf6 {[%clk 0:00:08.5]} 48. Kg3 {[%clk
0:00:04]} 48... gxf4+ {[%clk 0:00:07.5]} 49. Kxf4 {[%clk 0:00:04.1]} 49... Kg6
{[%clk 0:00:08.1]} 50. h4 {[%clk 0:00:01.9]} 50... Kf6 {[%clk 0:00:08.4]} 0-1

[Event "*** Titled Tuesday Blitz"]
[Site "Chess.com"]
[Date "2021.02.09"]
[Round "9"]
[White "volunteers1998"]
[Black "PushingpawnsNYC"]
[Result "1-0"]
[WhiteElo "2084"]
[BlackElo "2287"]
[TimeControl "180+1"]
[EndTime "11:45:30 PST"]
[Termination "volunteers1998 won on time"]

1. e4 {[%clk 0:03:00.9]} 1... c5 {[%clk 0:02:57.4]} 2. Nf3 {[%clk 0:02:59.8]}
2... e6 {[%clk 0:02:56.4]} 3. d4 {[%clk 0:02:58.2]} 3... cxd4 {[%clk 0:02:57.3]}
4. Nxd4 {[%clk 0:02:54.8]} 4... a6 {[%clk 0:02:57.1]} 5. Nc3 {[%clk 0:02:50.7]}
5... Bb4 {[%clk 0:02:54.1]} 6. Bd2 {[%clk 0:02:47.7]} 6... Qc7 {[%clk
0:02:48.9]} 7. Bd3 {[%clk 0:02:40.3]} 7... Nf6 {[%clk 0:02:36]} 8. O-O {[%clk
0:02:37.4]} 8... Nc6 {[%clk 0:02:25]} 9. Nxc6 {[%clk 0:02:34.1]} 9... bxc6
{[%clk 0:02:15.5]} 10. Qf3 {[%clk 0:02:24.7]} 10... d6 {[%clk 0:01:47.1]} 11.
Qg3 {[%clk 0:02:22.1]} 11... g6 {[%clk 0:01:33.3]} 12. Bg5 {[%clk 0:02:14.9]}
12... Nh5 {[%clk 0:01:27.9]} 13. Qh4 {[%clk 0:02:12.2]} 13... h6 {[%clk
0:01:18.7]} 14. Bd2 {[%clk 0:02:08.1]} 14... Qe7 {[%clk 0:01:11.9]} 15. Qxe7+
{[%clk 0:02:04.8]} 15... Kxe7 {[%clk 0:01:11.8]} 16. a3 {[%clk 0:02:03.2]} 16...
Bxc3 {[%clk 0:01:09.2]} 17. Bxc3 {[%clk 0:02:00.6]} 17... e5 {[%clk 0:01:09.7]}
18. g3 {[%clk 0:01:54.5]} 18... Bh3 {[%clk 0:01:08.1]} 19. Rfe1 {[%clk
0:01:50.9]} 19... Rhf8 {[%clk 0:01:07.7]} 20. f4 {[%clk 0:01:45.9]} 20... exf4
{[%clk 0:00:53.8]} 21. e5 {[%clk 0:01:45.4]} 21... d5 {[%clk 0:00:44.6]} 22.
Bb4+ {[%clk 0:01:42.2]} 22... Ke6 {[%clk 0:00:44.6]} 23. Bxf8 {[%clk 0:01:39.6]}
23... Rxf8 {[%clk 0:00:45.5]} 24. gxf4 {[%clk 0:01:32.5]} 24... Nxf4 {[%clk
0:00:41.8]} 25. Bxa6 {[%clk 0:01:31.5]} 25... c5 {[%clk 0:00:34.2]} 26. Bf1
{[%clk 0:01:27.4]} 26... Bf5 {[%clk 0:00:32.2]} 27. c3 {[%clk 0:01:24.5]} 27...
c4 {[%clk 0:00:29.3]} 28. Kf2 {[%clk 0:01:19.9]} 28... Bd3 {[%clk 0:00:26.5]}
29. a4 {[%clk 0:01:14.5]} 29... Ra8 {[%clk 0:00:21.3]} 30. a5 {[%clk 0:01:11.4]}
30... Bxf1 {[%clk 0:00:19.9]} 31. Kxf1 {[%clk 0:01:05.8]} 31... Nd3 {[%clk
0:00:19.8]} 32. Re2 {[%clk 0:01:01.2]} 32... Nc5 {[%clk 0:00:19]} 33. a6 {[%clk
0:00:55]} 33... Rxa6 {[%clk 0:00:16.1]} 34. Rxa6+ {[%clk 0:00:51.5]} 34... Nxa6
{[%clk 0:00:16.5]} 35. Rf2 {[%clk 0:00:45.5]} 35... Nc5 {[%clk 0:00:15.9]} 36.
Rf6+ {[%clk 0:00:42.3]} 36... Kxe5 {[%clk 0:00:16.1]} 37. Rxf7 {[%clk
0:00:39.1]} 37... Nd3 {[%clk 0:00:15.4]} 38. Rb7 {[%clk 0:00:35.8]} 38... h5
{[%clk 0:00:11.7]} 39. Ke2 {[%clk 0:00:32.6]} 39... g5 {[%clk 0:00:10.2]} 40. b4
{[%clk 0:00:29.5]} 40... Nf4+ {[%clk 0:00:03.3]} 41. Kf3 {[%clk 0:00:26.3]}
41... d4 {[%clk 0:00:03.1]} 42. cxd4+ {[%clk 0:00:23.6]} 42... Kxd4 {[%clk
0:00:04]} 43. b5 {[%clk 0:00:21.4]} 43... Kc5 {[%clk 0:00:04.2]} 44. Rg7 {[%clk
0:00:18.5]} 44... Ne6 {[%clk 0:00:03.7]} 45. Rg6 {[%clk 0:00:16.6]} 45... g4+
{[%clk 0:00:04]} 46. Ke4 {[%clk 0:00:14.6]} 46... Nc7 {[%clk 0:00:02.8]} 47.
Rg5+ {[%clk 0:00:14]} 47... Kb4 {[%clk 0:00:02.5]} 48. b6 {[%clk 0:00:12.4]}
48... Na6 {[%clk 0:00:03]} 49. b7 {[%clk 0:00:11.3]} 49... c3 {[%clk 0:00:02.7]}
50. Kd3 {[%clk 0:00:06.9]} 50... Kb3 {[%clk 0:00:01.6]} 51. Rb5+ {[%clk
0:00:04.5]} 51... Ka4 {[%clk 0:00:01.8]} 52. b8=Q {[%clk 0:00:01.4]} 1-0